[Event "Benidorm Open-A 2022"]
[Site "Benidorm"]
[Date "2022.12.08"]
[Round "7.10"]
[White "Escartin Lacasa, Jose"]
[Black "Fernandez Garcia, Gumersindo"]
[Result "1-0"]
[ECO "A43"]
[WhiteElo "2277"]
[BlackElo "2172"]
[Annotator "TA"]
[PlyCount "73"]
[EventDate "2022.12.03"]
[EventType "swiss"]
[EventCountry "ESP"]
[SourceTitle "playchess.com"]
[Source "ChessBase"]
[SourceQuality "1"]
[TimeControl "5400+30"]

{[%evp 11,73,40,51,39,75,67,78,82,77,70,65,64,51,60,106,116,110,106,125,107,108,103,293,300,290,300,293,294,303,281,303,318,323,308,340,317,339,304,333,197,312,300,311,282,314,323,425,425,424,412,493,493,498,500,488,497,525,522,1042,1042,1029,1018,29990,29991]} 1. d4 {Stohl,Igor} Nf6 2. Nf3 c5 3. d5 b5 4. Bg5 Bb7 5. Bxf6 exf6 6. e4 a6 7. a4 {A43: Schmid Benoni.} Qb6 8. Be2 c4 9. O-O {White is better.} Bc5 10. c3 O-O {[#]} 11. b4 $146 ({Predecessor:} 11. Nd4 Re8 12. Bf3 d6 13. axb5 axb5 14. Rxa8 Bxa8 15. b4 cxb3 16. Qxb3 Bxd4 17. cxd4 {1-0 (53) Khalifman,A (2655)-Fominyh,A (2515) Elista 1995 CBM 050 [Stohl,Igor]}) 11... cxb3 12. Qxb3 {[%cal Ra4b5]} Re8 (12... d6 $14) 13. Nbd2 $16 ({But not} 13. axb5 $6 Rxe4 14. Bd3 Re8 $11) 13... f5 {[#]} 14. Bd3 d6 15. exf5 {[%cal Ra4b5]} Nd7 16. axb5 Nf6 $2 {A mistake that costs the game.} (16... axb5 $16 17. Rxa8 (17. Bxb5 Bxf2+ 18. Kh1 Rxa1 $16) 17... Bxa8) 17. bxa6 $18 Bxd5 18. Qxb6 Bxb6 {This pair of bishops is nice.} 19. Rfb1 Bc5 20. Nd4 {[%cal Bf3d4,Bd4b5,Bb5d6][%mdl 32]} h6 21. h3 Rec8 22. Nb5 Bc6 23. c4 d5 24. Nb3 dxc4 25. Bxc4 (25. Nxc5 $142 cxd3 26. Nxd3) 25... Bb6 (25... Bxb5 {might work better.} 26. Bxb5 Ba7) 26. Nd6 Rc7 27. Na5 Bd4 28. Ra2 Bd5 29. Bxd5 Nxd5 30. Nb5 {[%csl LRc7,LRd4][%cal Ob5c7]} Rxa6 31. Nxd4 Nc3 32. Rb8+ Kh7 33. Ra1 Ne4 34. Re1 Nxf2 35. Kxf2 Rxa5 36. Ree8 {[%csl Gb8][%cal Re8h8] [#]} g6 37. f6 {Weighted Error Value: White=0.10 (very precise) /Black=0.52} 1-0

[Event "Benidorm Open-A 2022"]
[Site "Benidorm"]
[Date "2022.12.08"]
[Round "7.11"]
[White "Gugan G"]
[Black "Mannion, Stephen R"]
[Result "0-1"]
[ECO "C42"]
[WhiteElo "2126"]
[BlackElo "2227"]
[Annotator "TA"]
[PlyCount "70"]
[EventDate "2022.12.03"]
[EventType "swiss"]
[EventCountry "ESP"]
[SourceTitle "playchess.com"]
[Source "ChessBase"]
[SourceQuality "1"]
[TimeControl "5400+30"]

{[%evp 21,70,18,20,13,24,4,7,0,9,0,0,-18,-15,-30,-5,-5,-5,-4,-9,-3,0,-13,-6,-17,-10,-14,0,-8,-10,-9,25,-7,24,-38,172,0,129,0,0,0,0,0,0,0,12,6,6,5,7,0,0]} 1. e4 e5 2. Nf3 Nf6 3. Nxe5 d6 4. Nf3 Nxe4 5. d4 d5 6. Bd3 Bd6 7. O-O O-O 8. c4 c6 9. Nc3 Nxc3 10. bxc3 dxc4 11. Bxc4 Bf5 12. a4 {C42: Petroff Defence: 3 Nxe5 and unusual White 3rd moves.} (12. Bg5 {is interesting.} Qa5 13. Nh4 Be6 14. Bxe6 Qxg5 15. Nf3) 12... Nd7 {[%cal Bb8d7,Bd7f6,Bf6d5][%mdl 32] [#]} 13. Be3 $146 ({Predecessor:} 13. Re1 h6 14. Ba3 Bxa3 15. Rxa3 Re8 16. Rxe8+ Qxe8 17. Ra2 Qf8 18. Re2 Re8 19. a5 b5 20. axb6 Nxb6 {½-½ (41) De la Paz Perdomo,F (2473)-Bluvshtein,M (2589) Toluca 2011}) 13... Qc7 14. h3 Nf6 15. Nh4 (15. Bd3 {simplifies} Bxd3 16. Qxd3 Rfe8 17. Rfe1) 15... Be4 16. Bd3 Rfe8 17. Nf5 (17. Re1 {with more complications.} Qa5 18. Qc2 Bxd3 19. Qxd3 Ne4 20. Bd2) 17... Bxf5 (17... Bh2+ {keeps more tension.} 18. Kh1 Bf4 19. Bxe4 Rxe4 20. Qd2 Bxe3 21. Nxe3 Rae8) 18. Bxf5 g6 19. Bd3 Nd5 20. Bd2 Rad8 21. Qf3 Bf4 {Against g3} 22. Be1 (22. Bxf4 {simplifies} Qxf4 23. Qxf4 Nxf4 24. Bc4) 22... Bh6 23. g3 Re6 24. Rd1 Rf6 25. Qe2 Qe7 26. Kh2 Re8 (26... Re6 $5 {[%cal Re6e2]} 27. Qa2 b6 $11) 27. Qb2 (27. Qxe7 $11 Nxe7 28. f4) 27... Rd6 $2 (27... Rf3 $15 28. Qc2 Nf4 $1) 28. a5 $2 (28. c4 $18) 28... Bg7 {[#]} (28... b5 $11 {remains equal.}) 29. Rb1 (29. c4 $1 $16 {[%cal Rc4d5]}) 29... b5 $11 {The position is equal.} 30. axb6 axb6 31. Bd2 b5 32. Rfe1 Qd8 33. Rxe8+ Qxe8 34. Re1 Re6 35. Rxe6 Qxe6 {[%mdl 32768] Weighted Error Value: White=0.21 (precise) /Black=0.24 (precise) . Loss on time!?} 0-1

[Event "Benidorm Open-A 2022"]
[Site "Benidorm"]
[Date "2022.12.08"]
[Round "7.12"]
[White "Panjer, Sidney"]
[Black "Harshad S"]
[Result "1/2-1/2"]
[ECO "D02"]
[WhiteElo "2115"]
[BlackElo "2202"]
[Annotator "TA"]
[PlyCount "60"]
[EventDate "2022.12.03"]
[EventType "swiss"]
[EventCountry "ESP"]
[SourceTitle "playchess.com"]
[Source "ChessBase"]
[SourceQuality "1"]
[TimeControl "5400+30"]

{[%evp 15,60,-21,21,18,10,7,0,9,9,4,0,0,0,0,0,2,13,18,25,24,24,23,23,19,25,22,25,29,18,0,0,0,0,0,0,0,0,0,0,0,0,0,0,0,0,0,0]} 1. Nf3 d5 2. d4 Nf6 3. c4 e6 4. g3 dxc4 5. Qa4+ Nbd7 6. Bg2 a6 7. Qxc4 b5 8. Qc6 Rb8 ({Don't take} 8... Bb4+ 9. Bd2 Bxd2+ 10. Nbxd2 $14) 9. Bf4 {E03: Open Catalan: 5 Qa4+ Nbd7 6 Qxc4.} Bb7 10. Qxc7 Bb4+ {is the legacy move (10...Qxc7).} 11. Nbd2 Qxc7 12. Bxc7 Rc8 13. Bf4 Rc2 $1 14. Rb1 Bxd2+ 15. Bxd2 O-O 16. Nh4 Ne4 17. Bxe4 Bxe4 18. f3 Bd5 19. Kd1 $1 Rfc8 (19... Rc4 {simplifies} 20. b3 Rxd4 21. Ke1 Bb7) 20. Bc3 R8xc3 21. bxc3 Rxa2 {[#]} 22. Ng2 $146 {The position is equal.} ({Predecessor:} 22. Rf1 Nb6 23. Ke1 Nc4 24. Rf2 Ne3 25. Ng2 Nxg2+ 26. Rxg2 Bxf3 27. Rf2 Be4 28. Rb4 Ra1+ 29. Kd2 {½-½ (29) Shapiro,V (2354)-Roy Laguens,A (2359) ICCF email 2018}) 22... Bb3+ $1 {[%mdl 64] [#]} 23. Ke1 {[%cal Og2e3] Threatens to win with Ne3!} (23. Rxb3 $5 Ra1+ $8 24. Kd2 Rxh1 25. c4 $11) 23... Bc4 $1 24. Nf4 Nb6 {Hoping for ...Na4.} 25. Rd1 Nd5 26. Rd2 Ra1+ 27. Rd1 Ra2 28. Rd2 {[#] aiming for Rxa2.} Ra1+ 29. Rd1 Ra2 {...Nxf4 is the strong threat.} 30. Rd2 {Black must now prevent Rxa2.} Ra1+ {A balanced but interesting game.   Weighted Error Value: White=0.01 (flawless) /Black=0.02 (flawless)} 1/2-1/2

[Event "Benidorm Open-A 2022"]
[Site "Benidorm"]
[Date "2022.12.08"]
[Round "7.13"]
[White "Priyanka, Kumari"]
[Black "Arjun C Krishnamachari"]
[Result "1/2-1/2"]
[ECO "B00"]
[WhiteElo "1910"]
[BlackElo "2241"]
[Annotator "TA"]
[PlyCount "128"]
[EventDate "2022.12.03"]
[EventType "swiss"]
[EventCountry "ESP"]
[SourceTitle "playchess.com"]
[Source "ChessBase"]
[SourceQuality "1"]
[TimeControl "5400+30"]

{[%evp 9,128,56,79,62,110,82,83,79,91,32,83,85,85,74,118,114,120,116,116,116,127,47,77,44,68,71,31,34,114,109,127,134,145,117,107,111,119,45,54,43,67,54,106,104,103,81,149,162,161,156,168,175,209,205,225,227,377,369,373,366,389,216,160,139,165,145,153,158,177,170,385,364,259,8,8,8,8,8,79,8,8,8,8,0,0,0,193,173,75,0,0,0,0,0,0,0,8,8,8,8,8,8,8,8,8,0,0,0,0,0,0,0,8,8,8,8,8,8,8,8,8]} 1. e4 b6 2. d4 Bb7 3. Nc3 e6 4. Nf3 Ne7 5. Bd3 g6 6. h4 {B00: Queen's Fianchetto Defence, Nimzowitsch Defence.} h5 (6... h6 $14) 7. Bg5 Bg7 {[#] Inhibits Bf6.} 8. e5 $146 {White is better.} ({Predecessor:} 8. Qd2 d5 9. e5 a6 10. Nd1 c5 11. c3 c4 12. Bc2 b5 13. Ne3 a5 14. a4 {0-1 (46) Vusatiuk,V (2308)-Olenik Campa,R (2203) Chess.com INT 2022}) 8... d5 {Prevents Ne4.} 9. Nh2 (9. O-O $16) 9... a6 ({Black should try} 9... Qd7 $14) 10. Ne2 $16 {White is much more active.} c5 11. c3 c4 12. Bc2 Nd7 {[%cal Bb8d7,Bd7e5,Be5d3][%mdl 32]} 13. Nf4 {[%cal Oc2g6] Hoping for Bxg6!} Qc7 14. Qe2 b5 15. g4 (15. Nf3 $16) 15... Nxe5 $1 $14 16. gxh5 (16. dxe5 {feels hotter.} d4 17. Be4 dxc3 18. bxc3 Bxe4 19. Qxe4 Qxe5 20. Qxe5 Bxe5 21. Ne2) 16... Nd3+ 17. Bxd3 cxd3 18. Nxd3 {hxg6 is the strong threat.} gxh5 (18... Rxh5 $14 19. Ng4 Kf8) 19. Bf4 Qb6 {[%cal Ob5b4]} 20. Nf3 {Prevents b4.} Ng6 21. Nfe5 {Black must now prevent Nxg6.} Nxf4 22. Nxf4 Qc7 23. Rg1 (23. Nxh5 $6 Bxe5 24. dxe5 O-O-O $11) ({White should play} 23. Nfd3 $1 $16) 23... Bxe5 $1 24. Qxe5 Qxe5+ 25. dxe5 O-O-O (25... Rc8 $14) 26. O-O-O $16 ({Don't play} 26. Rg7 Rdg8 27. Rg3 (27. Rxf7 $2 {too greedy.} Rg1+ 28. Kd2 Rxa1 $19) 27... Rxg3 28. fxg3 Kd7 $14) 26... Rdg8 27. Kd2 Rg4 (27... a5 $142) 28. Rxg4 hxg4 {[%mdl 4096] Endgame KRB-KRN} 29. h5 {[%cal Bh4h5,Bh5h6][%mdl 32]} Kd7 30. Rg1 Rg8 31. Ke3 Ke7 32. Kd4 Rg5 (32... Bc6 $142 33. Rh1 Rg7) 33. h6 $18 Kf8 34. Rh1 Kg8 35. Rh5 (35. Nh5 $142) 35... Rxh5 36. Nxh5 {Threatens to win with Nf6+. KB-KN} Kh7 37. Nf6+ Kxh6 38. Nxg4+ Kg5 {[#]} 39. Nf6 Kg6 $2 (39... Bc8 40. a3 Kf4) 40. Kc5 Kf5 41. Kd6 (41. Kb6 $18 Bc8 42. Kc7 Kxe5 43. Nh5) 41... b4 $1 $11 42. Nd7 {Strongly threatening Nc5.} a5 $1 43. Nc5 Ba8 (43... bxc3 $11 {keeps the balance.} 44. bxc3 Ba8) 44. a3 (44. cxb4 $16 axb4 45. Nd3) 44... bxa3 45. bxa3 Kf4 46. a4 Kf5 47. Nd7 (47. Nb3 $5 Ke4 $8 48. Nd4 $11 (48. Nxa5 Kd3 $15)) 47... Bb7 $2 {[#]} (47... Ke4 $11 48. Nc5+ Kf5) 48. Kc7 $1 $18 Ba6 49. Nc5 (49. Kc6 $16) 49... Be2 $11 {The position is equal.} 50. Kd6 Bd1 51. Nb7 Bxa4 52. Nxa5 f6 53. exf6 Kxf6 54. Nb7 Bd1 55. Nc5 Bg4 56. Nd7+ Kf5 57. Nc5 Kf6 58. Nd3 Kf5 59. Ne5 {Threatening mate with Nxg4.} Bh3 60. Nf3 Kf4 61. Nd4 e5 62. Nc6 d4 63. cxd4 exd4 64. Nxd4 Ke4 {Weighted Error Value: White=0.22 (precise) /Black=0.25 (precise)} 1/2-1/2

[Event "Benidorm Open-A 2022"]
[Site "Benidorm"]
[Date "2022.12.08"]
[Round "7.15"]
[White "Ojas Kulkarni"]
[Black "Sanroman Costas, Mauro"]
[Result "1-0"]
[ECO "A48"]
[WhiteElo "2233"]
[BlackElo "2123"]
[Annotator "TA"]
[PlyCount "77"]
[EventDate "2022.12.03"]
[EventType "swiss"]
[EventCountry "ESP"]
[SourceTitle "playchess.com"]
[Source "ChessBase"]
[SourceQuality "1"]
[TimeControl "5400+30"]

{[%evp 16,77,17,23,47,42,36,33,78,52,68,50,45,47,68,68,64,73,72,27,4,8,0,0,0,0,22,-51,41,18,122,113,191,190,183,198,246,170,164,174,249,225,203,217,275,272,280,272,5306,5285,5165,2313,2092,2092,29986,29987,29987,29988,29988,29989,29989,29990,29990,29989]} 1. d4 Nf6 2. Nf3 g6 3. Bf4 Bg7 4. e3 O-O 5. Be2 d6 6. h3 Nfd7 7. O-O e5 8. Bh2 Nc6 9. c4 e4 {A48: 1 d4 Nf6 2 Nf3 g6: Torre, London and Colle Systems.} 10. Nfd2 f5 11. Nc3 Ne7 {White is slightly better.} 12. b4 {[#]} (12. c5 $5) 12... a6 $146 ({Predecessor:} 12... Nf6 13. b5 Be6 14. Qc2 Kh8 15. Rfc1 g5 16. c5 d5 {0-1 (46) Diakonova,E (2157)-Charochkina,D (2327) Sochi 2021}) 13. Rc1 Nf6 14. d5 Kh8 15. a4 {[%cal Ba2a4,Ba4a5][%mdl 32]} g5 16. a5 Rg8 17. c5 {White is more active.} dxc5 18. bxc5 {Threatening Bc4.} Nexd5 ({Much worse is} 18... Nfxd5 19. Nxd5 Nxd5 20. Qb3 $11) 19. Nxd5 Nxd5 20. Bc4 {[%cal Od2e4] White wants to play Nxe4!} c6 21. Nb3 (21. Bd6 $11) 21... Re8 (21... f4 $1 $15) 22. Bd6 $14 Be6 {Black is now going downhill.} (22... Nc3 $11 {remains equal.} 23. Qh5 Bd7) 23. Nd4 $16 Qd7 {[#]} (23... Qxa5 $2 24. Nxe6 Rxe6 25. Bxd5 cxd5 26. Qxd5 $18) (23... Bxd4 $16 24. Qxd4+ Kg8) 24. Nxe6 $1 $18 Qxe6 ({Less strong is} 24... Rxe6 25. Bxd5 cxd5 26. Qxd5) 25. Qb3 Bf8 (25... Qf7 $142 26. Rb1 f4 27. Qxb7 Qxb7 28. Rxb7 Bc3) 26. Bxf8 Rxf8 27. Rfd1 ({Don't take} 27. Qxb7 Rfb8 28. Bxd5 cxd5 $16) 27... Qf7 (27... Qe7 $142) 28. Bxd5 cxd5 29. Rxd5 Rac8 30. Rcd1 Rc7 31. Qa4 {[#] Threatens to win with Rd7.} Rfc8 $2 (31... Qf6 32. Rd6 Qc3) 32. Rd8+ Rxd8 33. Rxd8+ {[%mdl 4096] Endgame KQR-KQR} (33. Qa1+ $142 Rd4 34. Rxd4) 33... Kg7 34. Qd4+ Kg6 35. Rd6+ {White mates.} Kh5 36. g4+ fxg4 37. hxg4+ Kxg4 38. Qxe4+ Kh5 39. f3 {Weighted Error Value: White=0.14 (very precise) /Black=0.63} 1-0

[Event "Benidorm Open-A 2022"]
[Site "Benidorm"]
[Date "2022.12.08"]
[Round "7.16"]
[White "Roe, Simon J"]
[Black "Levi, Netanel"]
[Result "1-0"]
[ECO "E62"]
[WhiteElo "2146"]
[BlackElo "2179"]
[Annotator "TA"]
[PlyCount "69"]
[EventDate "2022.12.03"]
[EventType "swiss"]
[EventCountry "ESP"]
[SourceTitle "playchess.com"]
[Source "ChessBase"]
[SourceQuality "1"]
[TimeControl "5400+30"]

{[%evp 16,69,25,29,36,24,37,20,16,16,33,24,23,26,54,0,5,0,34,14,93,102,110,118,173,179,318,310,398,403,709,698,672,689,1015,978,942,708,1105,1075,1276,1266,1207,1235,1500,1081,1070,1083,1057,1054,1060,1055,1477,1474,1501,1309]} 1. Nf3 d6 2. d4 Nf6 3. g3 g6 4. Bg2 Bg7 5. c4 O-O 6. Nc3 Nc6 7. O-O e5 8. d5 Nb8 {outshines the older 8...Ne7.} 9. e4 a5 {E62: King's Indian: Fianchetto: 6...c6 and Panno Variation (6...Nc6) without ...a6.} 10. Rb1 Na6 11. Re1 Nc5 {The position is equal.} 12. b3 {[#]} Ng4 $146 ({Predecessor:} 12... c6 13. dxc6 bxc6 14. Ba3 Qe7 15. Qd2 Rd8 16. Rbd1 Be6 17. h3 Qc7 18. Ng5 Qb6 {1-0 (49) Ding,L (2799)-Pichot,A (2630) chess24.com INT 2021}) 13. h3 Nh6 14. Be3 {[#] Threatens to win with Qd2.} f5 15. Qd2 (15. Bxc5 $14 dxc5 16. exf5) 15... Nf7 $11 16. exf5 Bxf5 17. Rbd1 e4 (17... b6 $11 {remains equal.}) 18. Nd4 $16 {White stays focused until the end.} h5 {Prevents g4.} 19. Ne6 Nxe6 (19... Bxc3 $16 {was necessary.} 20. Qxc3 Nxe6 21. dxe6 Ne5) 20. dxe6 $18 Ne5 (20... Bxe6 $142 21. Nxe4 (21. Bxe4 Bxh3 22. Bxb7 Rb8 $16) 21... Bf5) 21. Nxe4 {And now Bg5 would win.} Bxh3 22. Qd5 {[#] Hoping for e7+.} ({Less strong is} 22. Bg5 Qe8 $18) 22... Kh8 (22... Nf3+ $2 23. Bxf3 c6 24. Qg5 Bxe6 25. Qxg6 $18) (22... c6 $142 23. Qxd6 Qxd6 24. Rxd6 Bf5) 23. Bxh3 {White is clearly winning.} Nf3+ 24. Kg2 Be5 25. Rh1 Kg7 26. Nd2 Ng5 27. f4 {[%cal Bf2f4,Bf4e5,Be5d6][%mdl 32]} c6 28. Qd3 Nxh3 29. fxe5 Ng5 30. Qxd6 Qxd6 31. exd6 Nxe6 32. Nf3 a4 33. b4 Rae8 34. Rhe1 Rf5 35. Nd4 {Weighted Error Value: White=0.07 (flawless) /Black=0.40} 1-0

[Event "Benidorm Open-A 2022"]
[Site "Benidorm"]
[Date "2022.12.08"]
[Round "7.17"]
[White "Lohia, Sohum"]
[Black "Slagboom, Leandro"]
[Result "1/2-1/2"]
[ECO "B60"]
[WhiteElo "2136"]
[BlackElo "2147"]
[Annotator "TA"]
[PlyCount "114"]
[EventDate "2022.12.03"]
[EventType "swiss"]
[EventCountry "ESP"]
[SourceTitle "playchess.com"]
[Source "ChessBase"]
[SourceQuality "1"]
[TimeControl "5400+30"]

{[%evp 14,114,47,28,20,28,35,0,0,-47,-48,-41,0,0,0,0,-7,-15,0,-221,0,-11,206,196,199,107,124,126,130,0,0,0,98,-5,116,100,146,118,133,5,10,12,47,81,98,110,156,158,135,8,13,0,79,0,0,0,0,-177,-158,-84,0,-4,-4,-4,0,-10,0,0,0,0,0,0,0,0,0,0,0,0,0,0,0,0,0,0,0,0,0,0,0,0,0,0,0,0,0,0,0,0,0,0,0,0,0]} 1. e4 c5 2. Nf3 d6 3. d4 cxd4 4. Nxd4 Nf6 5. Nc3 Nc6 6. Bg5 g6 7. Bxf6 exf6 8. Qd2 (8. Bb5 $5 {[%cal Rd4c6]} Bd7 9. Qd3 $14) 8... Bg7 $1 {B60: Sicilian: Richter-Rauzer: Unusual Black 6th moves and 6...Bd7 without 7 Qd2.} 9. O-O-O {9.Ndb5 is vanishing.} O-O 10. Nb3 f5 11. Bd3 (11. Qxd6 $11 Bxc3 12. bxc3) 11... a5 $15 12. a4 $1 {[#]} Be6 $146 (12... Nb4 {is more complex.} 13. Kb1 Bxc3 14. Qxc3 fxe4 15. Bxe4 d5) ({Predecessor:} 12... Nb4 13. exf5 Nxd3+ 14. Qxd3 Bxf5 15. Qg3 Rc8 16. Nd4 Bd7 17. Ndb5 Bxb5 18. Nxb5 Qf6 {0-1 (46) Rasmussen,A (2535)-Illescas Cordoba,M (2591) Novi Sad 2009}) 13. exf5 gxf5 14. h3 {[%cal Og2g4]} Rc8 15. Kb1 {[%cal Og2g4]} Nb4 {[%cal Oc8c3] Inhibits g4. Strongly threatening ...Rxc3!} 16. g4 $2 {[#]} (16. Bb5 $11 {and White stays safe.}) 16... Qf6 $2 (16... fxg4 17. hxg4 h6 18. Nd4 $1 $16) (16... Rxc3 $1 $19 {[%mdl 512]} 17. bxc3 Nd5) 17. gxf5 $11 Nd5 $2 18. fxe6 $18 Rxc3 19. Rhg1 (19. bxc3 $2 Nxc3+ $19) (19. e7 $18 Re8 20. Rhg1 (20. bxc3 $2 Nxc3+ $19) (20. Nxa5 Rc5 $11) (20. Bxh7+ Kh8 $16) 20... Rxe7 21. Rg3 (21. bxc3 $2 Nxc3+ 22. Kb2 Nxd1+ 23. Kc1 Nxf2 $19)) 19... fxe6 {[%mdl 64]} 20. Rxg7+ (20. bxc3 $2 Nxc3+ $19) (20. Nxa5 Rc5 21. c4 (21. Nxb7 $2 Qxb2#) 21... Nf4 $11) 20... Qxg7 21. bxc3 (21. Nd4 $1 $16 {[%cal Rd4e6]} Rxd3 22. Qxd3) 21... Nxc3+ $11 22. Kc1 {Black must now prevent Rh1.} Nxd1 (22... Na2+ $11 23. Kb1 Nc3+ 24. Kc1 Na2+ 25. Kb1 Nc3+) 23. Kxd1 (23. Qxd1 $16 b6 24. Qh5) 23... Qg2 (23... Qg1+ $11 {remains equal.} 24. Qe1 Qxe1+ 25. Kxe1 b6) 24. Qe3 e5 (24... Qf3+ $142 25. Qxf3 Rxf3) 25. Ke2 d5 26. Qg3+ {Really sharp!} (26. Qxe5 $16 {Hoping for Bf5.} Qxf2+ 27. Kd1) 26... Qxg3 27. fxg3 {[%cal Oc2c4]} b6 (27... Rc8 $5 {[%cal Re5e4]}) 28. Nd2 Rc8 29. c4 $1 e4 ({Black should play} 29... dxc4 30. Nxc4 (30. Bxc4+ Kg7 $16) 30... Rb8) 30. Bb1 $16 dxc4 31. Nxc4 Kg7 $11 (31... Rxc4 $2 32. Ba2 Kf7 33. Bxc4+ $18) 32. Nd6 (32. Nxb6 $2 Rb8 33. Bxe4 Rxb6 $19) 32... Rc3 {[#]} (32... Rc6 $11 33. Nf5+ (33. Bxe4 $2 {is the wrong capture.} Rxd6 34. Ke3 Rd1 $19) (33. Nxe4 Rc4 $11) 33... Kf6 34. Bxe4 Rc4) 33. Nxe4 ({Better is} 33. Kd2 $1 $16 {[%cal Rd2c3]} Ra3 34. Bc2 (34. Bxe4 Rxa4 35. Kc3 h5 $11)) 33... Rc4 34. Ke3 Rxa4 35. Bd3 $2 (35. Nc3 $11 Ra3 36. Kd4) 35... Rb4 $19 {[%mdl 1024] Threatens to win with ...a4. Black has strong compensation.} ({Not} 35... Ra3 36. Kd4 $11) 36. Nd6 {[#]} ({White should try} 36. Nc3) 36... Rb3 (36... a4 $1 $17 {[%cal Ra4a3] aiming for ...a3.} 37. Nb5 Rb3) 37. Nf5+ {The position is equal.} Kf6 {[%cal Ob3d3]} 38. Nd4 Rc3 39. Kd2 Rc5 40. Bxh7 a4 41. Bc2 a3 42. Nb3 {Against a2} Rc4 43. g4 Kg5 44. Kc1 Rc3 45. Kb1 b5 46. Na1 b4 47. Bb3 Rxh3 48. Ka2 Rh2+ 49. Nc2 Kxg4 50. Kb1 Kf4 51. Ka1 Ke5 52. Nxb4 Kd4 53. Nc2+ Kc3 54. Ka2 Rh8 55. Kxa3 Rb8 56. Na1 Ra8+ 57. Ba4 Ra7 {Weighted Error Value: White=0.37/Black=0.29 (precise)} 1/2-1/2

[Event "Benidorm Open-A 2022"]
[Site "Benidorm"]
[Date "2022.12.08"]
[Round "7.18"]
[White "Sarveshwaran V"]
[Black "Cabezas Ayala, Ivan"]
[Result "1/2-1/2"]
[ECO "C65"]
[WhiteElo "2040"]
[BlackElo "2259"]
[Annotator "TA"]
[PlyCount "63"]
[EventDate "2022.12.03"]
[EventType "swiss"]
[EventCountry "ESP"]
[SourceTitle "playchess.com"]
[Source "ChessBase"]
[SourceQuality "1"]
[TimeControl "5400+30"]

{[%evp 9,63,18,43,7,24,12,16,6,18,13,20,17,14,-6,22,22,22,36,62,57,114,110,114,113,106,109,129,125,139,65,71,65,71,70,132,123,400,416,390,121,120,133,132,110,122,122,114,0,0,0,0,-574,0,0,0,-537]} 1. e4 e5 2. Nf3 Nc6 3. Bb5 Nf6 4. d3 Bc5 5. c3 d6 6. h3 {C65: Ruy Lopez: Berlin Defence (3...Nf6), unusual lines and 4 0-0 Bc5.} a6 7. Ba4 Ba7 8. O-O O-O 9. Re1 Ne7 10. d4 Ng6 11. Nbd2 {[%cal Bb1d2,Bd2f1,Bf1g3,Bg3h5][%mdl 32]} Nh5 12. Nf1 Nhf4 13. Ng3 Qf6 14. Nh5 Qe7 (14... Nxh5 $2 15. Bg5 $18) (14... Qe6 $1 $14) 15. Bxf4 $16 Nxf4 16. Nxf4 exf4 {[#]} 17. e5 $146 ({Predecessor:} 17. Bc2 c5 18. Qd3 cxd4 19. cxd4 Bd7 20. e5 g6 21. Qa3 Bc6 22. exd6 Qf6 23. d5 Bxd5 {½-½ (30) Sevian,S (2615)-Azarov,S (2556) Saint Louis 2017}) 17... dxe5 18. Rxe5 Qf6 19. Bc2 (19. Qe2 $16) 19... Bd7 20. Qd2 Rae8 21. Rae1 {White is more active.} Rxe5 ({Black should play} 21... c6 $1 $14) 22. dxe5 Qb6 {[%mdl 8192]} (22... Qe7 $16 {keeps fighting.} 23. Qxf4 Bc6) 23. Qxd7 $18 Qxf2+ 24. Kh1 $2 (24. Kh2 $18 {is the precise move to win.} Qxc2 25. e6) 24... Qxc2 $16 25. e6 fxe6 (25... Qxb2 {leads to mate.} 26. exf7+ (26. Qxc7 fxe6 27. Qc4 Kh8 $17) 26... Kh8 27. Qe7) 26. Qxe6+ Kh8 27. Ne5 $1 {[%mdl 1024] Threatening mate with Nf7+. White has strong compensation.} g6 (27... Qxb2 {gets mated.} 28. Nf7+ Kg8 29. Nh6+ Kh8 30. Qg8+ $3 {[%mdl 512]} Rxg8 31. Nf7#) 28. Nd7 (28. Nf7+ $16 Kg7 29. Ng5) 28... f3 $1 $36 {[%csl Gf3][%cal Rc2g2][%mdl 2048] Black fights for an advantage.} 29. Qe5+ (29. Nxf8 $2 Qxg2#) 29... Kg8 {[%csl Gf3][%cal Rc2g2]} 30. Qe6+ $2 {[%mdl 8192] [#]} (30. gxf3 $11 {and White has nothing to worry.} Qf5 31. Nxf8 Qxh3+ 32. Qh2 Qxf3+ 33. Qg2 Qh5+ 34. Qh2 Qf3+ 35. Qg2 Qh5+ 36. Qh2 Qf3+) 30... Kh8 $2 (30... Rf7 $1 $19 {[%csl Gf3][%cal Rc2g2]} 31. gxf3 Qf2 32. Nf6+ Kg7 33. Ne8+ Kf8) 31. Qe5+ (31. Nxf8 $2 Qxg2#) 31... Kg8 {[%csl Gf3][%cal Rc2g2]} 32. Qe6+ $2 {[%mdl 40960] Weighted Error Value: White=0.48/Black=0.59. An unexpected result.} (32. gxf3 $11 {and White stays safe.} Qf5 33. Nxf8 Qxh3+ 34. Qh2 Qxf3+ 35. Qg2 Qh5+ 36. Qh2 Qf3+ 37. Qg2 Qh5+ 38. Qh2 Qf3+) 1/2-1/2